fUST/lending_fUST_20250623
["ID","MTS","AMOUNT","RATE_DAILY","PERIOD"]
[367023753,1750620647910,-500.0,0.00024473,2]
[367023754,1750620647919,-500.0,0.00024473,2]
[367023755,1750620647929,-500.0,0.00024473,2]
[367023756,1750620647939,-500.0,0.00024473,2]
[367023757,1750620647948,-500.0,0.00024473,2]
[367023758,1750620647957,-500.0,0.00024473,2]
[367023759,1750620647966,-500.0,0.00024473,2]
[367023760,1750620647975,-500.0,0.00024473,2]
[367023761,1750620647984,-500.0,0.00024473,2]
[367023762,1750620647994,-500.0,0.00024473,2]
[367023763,1750620648003,-500.0,0.00024473,2]
[367023764,1750620648012,-500.0,0.00024473,2]
[367023765,1750620648021,-585.16842993,0.00024473,2]
[367023766,1750620648030,-12500.0,0.00024473,3]
[367023767,1750620648040,-12500.0,0.0002449,3]
[367023768,1750620648049,-2004.413315,0.000245,4]
[367023769,1750620648059,-151.0,0.000245,8]
[367023770,1750620648068,-160.0,0.000245,3]
[367023771,1750620648078,-846.39664074,0.000245,3]
[367023772,1750620648089,-213.59462818,0.000245,3]
[367023773,1750620648099,-425.01221603,0.000245,3]
[367023774,1750620648109,-160.0,0.000245,3]
[367023775,1750620648119,-160.0,0.000245,3]
[367023776,1750620648128,-230.14598372,0.000245,3]
[367023777,1750620648138,-160.0,0.000245,3]
[367023778,1750620648148,-12551.52821599,0.000245,3]
[367023779,1750620648160,-836.56272071,0.000245,3]
[367023780,1750620648169,-1000.0,0.00024521,2]
[367023781,1750620648179,-1000.0,0.00024521,2]
[367023782,1750620648188,-1000.0,0.00024521,2]
[367023783,1750620648198,-1000.0,0.00024521,2]
[367023784,1750620648207,-1000.0,0.00024521,2]
[367023785,1750620648217,-403.67801877,0.00024521,2]
[367023786,1750620648226,-1000.0,0.00024521,2]
[367023787,1750620648236,-1000.0,0.00024521,2]
[367023788,1750620648246,-1000.0,0.00024521,2]
[367023789,1750620648255,-1042.96707662,0.00024521,2]
[367023790,1750620648264,-1000.0,0.00024521,2]
[367023791,1750620648274,-1000.0,0.00024521,2]
[367023792,1750620648283,-1000.0,0.00024521,2]
[367023793,1750620648292,-1000.0,0.00024521,2]
[367023794,1750620648302,-1045.28441747,0.00024521,2]
[367023795,1750620648311,-708.74718964,0.00024521,2]
[367023796,1750620648321,-1000.0,0.00024521,2]
[367023797,1750620648330,-222.81406767,0.00024521,2]
[367023798,1750620648339,-378.71298463,0.00024521,2]
[367023799,1750620648349,-1000.0,0.00024521,2]
[367023800,1750620648358,-501.95932904,0.00024521,2]
[367023801,1750620648368,-1081.17648423,0.00024521,2]
[367023802,1750620648378,-1000.0,0.00024521,2]
[367023803,1750620648387,-500.46361325,0.00024521,2]
[367023804,1750620648397,-1000.0,0.00024521,2]
[367023805,1750620648407,-1200.0,0.00024521,2]
[367023806,1750620648416,-1000.0,0.00024521,2]
[367023807,1750620648426,-1000.0,0.00024521,2]
[367023808,1750620648436,-1000.0,0.00024521,2]
[367023809,1750620648445,-1000.0,0.00024521,2]
[367023810,1750620648455,-1000.0,0.00024521,2]
[367023811,1750620648464,-1000.0,0.00024521,2]
[367023812,1750620648473,-1000.0,0.00024521,2]
[367023813,1750620648483,-1000.0,0.00024521,2]
[367023814,1750620648492,-530.13547856,0.00024521,2]
[367023815,1750620648502,-1000.0,0.00024521,2]
[367023816,1750620648511,-313.8,0.00024524,6]
[367023817,1750620648521,-1000.0,0.00024528,2]
[367023818,1750620648531,-1000.0,0.00024539,2]
[367023819,1750620648541,-83697.61901314,0.00024568,2]
[367023820,1750620648551,-223.0315306,0.00024584,2]
[367023821,1750620648560,-151.0,0.000246,5]
[367023822,1750620648570,-151.0,0.000246,7]
[367023823,1750620648726,-194.17121831,0.00024603,2]
[367023824,1750620648736,-500.0,0.00024616,2]
[367023825,1750620648745,-230.86708382,0.00024616,2]
[367023826,1750620648756,-2000.0,0.00024616,2]
[367023827,1750620648765,-2000.0,0.00024616,2]
[367023828,1750620648775,-1979.26591566,0.00024616,2]
[367023829,1750620648785,-2000.0,0.00024616,2]
[367023830,1750620648794,-721.90311196,0.00024616,2]
[367023831,1750620648804,-1000.0,0.00024648,2]
[367023832,1750620648814,-286073.89652813,0.0002465,4]
[367023833,1750620648823,-33505.23503895,0.0002465,7]
[367023834,1750620648832,-300.49953873,0.0002465,2]
[367023835,1750620648842,-200.00155733,0.0002465,2]
[367023836,1750620648852,-45469.10837513,0.00024651,2]
[367023837,1750620648862,-1000.0,0.00024658,2]
[367023838,1750620648871,-200.0,0.00024658,2]
[367023839,1750620648881,-1000.0,0.00024658,2]
[367023840,1750620648890,-455.55104601,0.00024658,2]
[367023841,1750620648899,-1000.0,0.00024658,2]
[367023842,1750620648908,-380.0,0.00024658,2]
[367023843,1750620648917,-1000.0,0.00024658,2]
[367023844,1750620648927,-500.0,0.00024671,2]
[367023845,1750620648936,-500.0,0.00024672,2]
[367023846,1750620648946,-1500.0,0.00024676,2]
[367023847,1750620648955,-1000.0,0.00024676,2]
[367023848,1750620648964,-208153.81489688,0.0002468,2]
[367023849,1750620648974,-4185.0,0.00024684,2]
[367023850,1750620648984,-151.0,0.000247,6]
[367023851,1750620648993,-151.0,0.000247,9]
[367023852,1750620649003,-159.1115641,0.00024712,2]
[367023853,1750620649013,-501.01,0.00024729,12]
[367023854,1750620649023,-500.0,0.00024736,2]
[367023855,1750620649032,-176.815034,0.0002474,4]
[367023856,1750620649042,-158.698644,0.0002474,4]
[367023857,1750620649051,-246940.68827351,0.00024755,2]
[367023858,1750620649061,-500.0,0.00024757,2]
[367023859,1750620649070,-500.0,0.00024792,2]
[367023860,1750620649080,-151.0,0.000248,7]
[367023861,1750620649091,-151.0,0.000248,5]
[367023862,1750620649100,-23170.0,0.000248,2]
[367023863,1750620649111,-1000.0,0.00024803,2]
[367023864,1750620649122,-313.8,0.00024806,6]
[367023865,1750620649131,-669.0,0.00024855,2]
[367023866,1750620649140,-500.0,0.00024855,2]
[367023867,1750620649150,-151.0,0.00024855,2]
[367023868,1750620649163,-151.0,0.00024855,2]
[367023869,1750620649172,-151.0,0.00024855,2]
[367023870,1750620649182,-151.0,0.00024855,2]
[367023871,1750620649191,-151.0,0.00024855,2]
[367023872,1750620649203,-151.0,0.00024855,2]
[367023873,1750620649212,-151.0,0.00024855,2]
[367023874,1750620649221,-151.0,0.00024855,2]
[367023875,1750620649231,-151.0,0.00024855,2]
[367023876,1750620649243,-151.0,0.00024855,2]
[367023877,1750620649253,-151.0,0.00024855,2]
[367023878,1750620649263,-151.0,0.00024855,2]
[367023879,1750620649272,-151.0,0.00024855,2]
[367023880,1750620649281,-151.0,0.00024855,2]
[367023881,1750620649290,-151.0,0.00024855,2]
[367023882,1750620649300,-151.0,0.00024855,2]
[367023883,1750620649309,-206.49189023,0.00024855,2]
[367023884,1750620649319,-500.0,0.00024855,2]
[367023885,1750620649329,-151.0,0.00024855,2]
[367023886,1750620649339,-1056.0,0.00024855,2]
[367023887,1750620649349,-500.0,0.00024873,2]
[367023888,1750620649359,-500.0,0.00024873,2]
[367023889,1750620649369,-503.52158142,0.00024873,2]
[367023890,1750620649379,-500.0,0.00024873,2]
[367023891,1750620649389,-500.0,0.00024873,2]
[367023892,1750620649398,-500.0,0.00024873,2]
[367023893,1750620649407,-151.0,0.00024873,2]
[367023894,1750620649417,-669.0,0.00024882,2]
[367023895,1750620649427,-500.0,0.00024882,2]
[367023896,1750620649437,-151.0,0.00024882,2]
[367023897,1750620649446,-151.0,0.00024882,2]
[367023898,1750620649456,-151.0,0.00024882,2]
[367023899,1750620649467,-151.0,0.00024882,2]
[367023900,1750620649476,-151.0,0.00024882,2]
[367023901,1750620649485,-151.45049726,0.00024882,2]
[367023902,1750620649495,-151.0,0.00024882,2]
[367023903,1750620649504,-151.0,0.00024882,2]
[367023904,1750620649514,-216.26544804,0.00024882,2]
[367023905,1750620649523,-199.55059891,0.00024882,2]
[367023906,1750620649533,-151.0,0.00024882,2]
[367023907,1750620649543,-151.0,0.00024882,2]
[367023908,1750620649553,-272.33497223,0.00024882,2]
[367023909,1750620649562,-151.0,0.00024882,2]
[367023910,1750620649572,-500.0,0.00024882,2]
[367023911,1750620649583,-1056.0,0.00024882,2]
[367023912,1750620649593,-7871.00135606,0.00024897,2]
[367023913,1750620649603,-297.907986,0.000249,7]
[367023914,1750620649613,-297.907986,0.000249,7]
[367023915,1750620649623,-70905.05,0.000249,2]
[367023916,1750620649632,-7588.33,0.000249,7]
[367023917,1750620649641,-160.0,0.000249,7]
[367023918,1750620649650,-846.39664074,0.000249,7]
[367023919,1750620649660,-425.01221603,0.000249,7]
[367023920,1750620649669,-160.0,0.000249,7]
[367023921,1750620649678,-213.59462818,0.000249,7]
[367023922,1750620649688,-7491.70644264,0.000249,2]
[367023923,1750620649697,-160.0,0.000249,7]
[367023924,1750620649708,-621333.51441,0.000249,2]
[367023925,1750620649717,-669.0,0.0002491,2]
[367023926,1750620649726,-152.04280326,0.0002491,2]
[367023927,1750620649736,-151.0,0.0002491,2]
[367023928,1750620649746,-151.0,0.0002491,2]
[367023929,1750620649755,-151.0,0.0002491,2]
[367023930,1750620649765,-151.0,0.0002491,2]
[367023931,1750620649775,-151.0,0.0002491,2]
[367023932,1750620649784,-151.0,0.0002491,2]
[367023933,1750620649794,-151.0,0.0002491,2]
[367023934,1750620649803,-198.0,0.0002491,2]
[367023935,1750620649819,-198.0,0.0002491,2]
[367023936,1750620649840,-500.0,0.0002491,2]
[367023937,1750620649855,-1056.0,0.0002491,2]
[367023938,1750620649873,-669.0,0.00024937,2]
[367023939,1750620649891,-151.0,0.00024937,2]
[367023940,1750620649910,-199.65804496,0.00024937,2]
[367023941,1750620649926,-198.0,0.00024937,2]
[367023942,1750620649941,-151.0,0.00024937,2]
[367023943,1750620649958,-151.0,0.00024937,2]
[367023944,1750620649973,-198.0,0.00024937,2]
[367023945,1750620649988,-198.0,0.00024937,2]
[367023946,1750620650004,-500.0,0.00024937,2]
[367023947,1750620650021,-1056.0,0.00024937,2]
[367023948,1750620650039,-574.6497757,0.00024943,2]
[367023949,1750620650053,-500.0,0.0002496,2]
[367023950,1750620650066,-669.0,0.00024965,2]
[367023951,1750620650085,-177.89952691,0.00024965,2]
[367023952,1750620650098,-151.0,0.00024965,2]
[367023953,1750620650113,-151.0,0.00024965,2]
[367023954,1750620650126,-500.0,0.00024965,2]
[367023955,1750620650139,-1056.0,0.00024965,2]
[367023956,1750620650153,-669.0,0.00024992,2]
[367023957,1750620650169,-245.0,0.00024992,2]
[367023958,1750620650182,-245.0,0.00024992,2]
[367023959,1750620650195,-296.18509573,0.00024992,2]
[367023960,1750620650209,-1056.0,0.00024992,2]
[367023961,1750620650223,-280.43483,0.00025,7]
[367023962,1750620650237,-151.0,0.00025,7]
[367023963,1750620650250,-151.0,0.00025,7]
[367023964,1750620650266,-265.706403,0.00025,7]
[367023965,1750620650280,-291.774844,0.00025,7]
[367023966,1750620650293,-291.774844,0.00025,7]
[367023967,1750620650307,-291.774844,0.00025,7]
[367023968,1750620650320,-291.774844,0.00025,7]
[367023969,1750620650334,-151.0,0.00025,7]
[367023970,1750620650349,-151.0,0.00025,7]
[367023971,1750620650363,-151.0,0.00025,7]
[367023972,1750620650377,-151.0,0.00025,7]
[367023973,1750620650390,-151.0,0.00025,7]
[367023974,1750620650403,-295.355433,0.00025,7]
[367023975,1750620650417,-151.0,0.00025,7]
[367023976,1750620650430,-151.0,0.00025,7]
[367023977,1750620650444,-297.907986,0.00025,7]
[367023978,1750620650457,-297.907986,0.00025,7]
[367023979,1750620650471,-500.0,0.00025,9]
[367023980,1750620650485,-500.0,0.00025,9]
[367023981,1750620650499,-44266.41719266,0.00025,7]
[367023982,1750620650512,-160.0,0.00025,7]
[367023983,1750620650526,-846.39664074,0.00025,7]
[367023984,1750620650541,-213.59462818,0.00025,7]
[367023985,1750620650555,-425.01221603,0.00025,7]
[367023986,1750620650568,-160.0,0.00025,7]
[367023987,1750620650580,-118848.75256389,0.00025,2]
[367023988,1750620650591,-168756.4602099,0.00025,7]
[367023989,1750620650603,-668.61771145,0.00025,7]
[367023990,1750620650615,-160.0,0.00025,7]
[367023991,1750620650625,-230.14598372,0.00025,7]
[367023992,1750620650637,-160.0,0.00025,7]
[367023993,1750620650648,-12551.52821599,0.00025,7]
[367023994,1750620650660,-836.56272071,0.00025,10]
[367023995,1750620650671,-296.56,0.00025003,2]
[367023996,1750620650683,-669.0,0.00025019,2]
[367023997,1750620650695,-1056.0,0.00025019,2]
[367023998,1750620650709,-1001.64921607,0.00025021,2]
[367023999,1750620650722,-1000.0,0.00025021,2]
[367024000,1750620650738,-1000.0,0.00025021,2]
[367024001,1750620650751,-1000.0,0.00025021,2]
[367024002,1750620650766,-1000.0,0.00025021,2]
[367024003,1750620650780,-1000.0,0.00025021,2]
[367024004,1750620650794,-1000.0,0.00025021,2]
[367024005,1750620650807,-166.75359688,0.00025021,2]
[367024006,1750620650820,-1004.11801205,0.00025021,2]
[367024007,1750620650834,-840.25694793,0.00025021,2]
[367024008,1750620650847,-812.72434771,0.00025025,2]
[367024009,1750620650862,-669.0,0.00025047,2]
[367024010,1750620650875,-1056.0,0.00025047,2]
[367024011,1750620650889,-723.09,0.00025054,2]
[367024012,1750620650902,-1000.0,0.00025064,2]
[367024013,1750620650915,-437.24886619,0.00025068,2]
[367024014,1750620650929,-1500.0,0.00025068,2]
[367024015,1750620650942,-500.99072211,0.00025068,2]
[367024016,1750620650955,-1500.0,0.00025068,2]
[367024017,1750620650969,-1500.0,0.00025068,2]
[367024018,1750620650982,-504.88538507,0.00025068,2]
[367024019,1750620650994,-1500.0,0.00025068,2]
[367024020,1750620651009,-1500.0,0.00025068,2]
[367024021,1750620651022,-1500.0,0.00025068,2]
[367024022,1750620651035,-1500.0,0.00025068,2]
[367024023,1750620651049,-1500.0,0.00025068,2]
[367024024,1750620651061,-1500.0,0.00025068,2]
[367024025,1750620651074,-992.55107155,0.00025068,2]
[367024026,1750620651087,-1000.0,0.00025068,2]
[367024027,1750620651101,-1500.0,0.00025068,2]
[367024028,1750620651115,-1500.0,0.00025068,2]
[367024029,1750620651128,-1500.0,0.00025068,2]
[367024030,1750620651142,-1800.0,0.00025068,2]
[367024031,1750620651158,-581.75668213,0.00025068,2]
[367024032,1750620651174,-560.35633233,0.00025068,2]
[367024033,1750620651188,-1500.0,0.00025068,2]
[367024034,1750620651200,-987.07405773,0.00025068,2]
[367024035,1750620651212,-1500.0,0.00025068,2]
[367024036,1750620651222,-1500.0,0.00025068,2]
[367024037,1750620651232,-1500.0,0.00025068,2]
[367024038,1750620651243,-1500.0,0.00025068,2]
[367024039,1750620651254,-1500.0,0.00025068,2]
[367024040,1750620651263,-7491.70644255,0.00025073,2]
[367024041,1750620651273,-669.0,0.00025074,2]
[367024042,1750620651283,-1056.0,0.00025074,2]
[367024043,1750620651293,-313.8,0.00025088,6]
[367024044,1750620651302,-1000.0,0.00025099,2]
[367024045,1750620651311,-259.09818768,0.000251,5]
[367024046,1750620651321,-213.59462818,0.000251,10]
[367024047,1750620651618,-425.01221603,0.000251,10]
[367024048,1750620651645,-669.0,0.00025102,2]
[367024049,1750620651659,-1056.0,0.00025102,2]
[367024050,1750620651668,-589.09272406,0.00025111,2]
[367024051,1750620651678,-1000.0,0.00025117,2]
[367024052,1750620651687,-669.0,0.00025129,2]
[367024053,1750620651696,-669.0,0.00025156,2]
[367024054,1750620651706,-1056.0,0.00025156,2]
[367024055,1750620651715,-500.0,0.00025164,30]
[367024056,1750620651724,-2500.0,0.00025164,2]
[367024057,1750620651735,-2342.23517694,0.00025164,2]
[367024058,1750620651744,-2500.0,0.00025164,2]
[367024059,1750620651754,-4185.0,0.00025174,2]
[367024060,1750620651763,-3443.0,0.00025183,2]
[367024061,1750620651773,-500.0,0.00025183,3]
[367024062,1750620651783,-669.0,0.00025184,2]
[367024063,1750620651792,-1056.0,0.00025184,2]
[367024064,1750620651802,-669.0,0.00025211,2]
[367024065,1750620651811,-1056.0,0.00025211,2]
[367024066,1750620651820,-1000.0,0.00025212,2]
[367024067,1750620651829,-151.0,0.00025213,7]
[367024068,1750620651839,-2000.0,0.00025224,2]
[367024069,1750620651849,-669.0,0.00025239,2]
[367024070,1750620651859,-1056.0,0.00025239,2]
[367024071,1750620651868,-7491.70644255,0.00025245,2]
[367024072,1750620651877,-669.0,0.00025266,2]
[367024073,1750620651887,-1056.0,0.00025266,2]
[367024074,1750620651896,-501.01,0.00025277,13]
[367024075,1750620651906,-500.0,0.00025283,6]
[367024076,1750620651915,-669.0,0.00025293,2]
[367024077,1750620651924,-1056.0,0.00025293,2]
[367024078,1750620651934,-248.482229,0.000253,7]
[367024079,1750620651943,-248.482229,0.000253,7]
[367024080,1750620651953,-151.0,0.000253,7]
[367024081,1750620651963,-186.163277,0.000253,7]
[367024082,1750620651973,-186.163277,0.000253,7]
[367024083,1750620651983,-1422.288382,0.000253,7]
[367024084,1750620651994,-1422.288382,0.000253,7]
[367024085,1750620652004,-1846.04,0.000253,7]
[367024086,1750620652014,-669.0,0.00025321,2]
[367024087,1750620652024,-1056.0,0.00025321,2]
[367024088,1750620652033,-151.0,0.00025321,7]
[367024089,1750620652043,-165.751092,0.00025321,7]
[367024090,1750620652053,-291.774844,0.00025333,7]
[367024091,1750620652063,-291.774844,0.00025333,7]
[367024092,1750620652073,-151.0,0.00025333,7]
[367024093,1750620652083,-526.938474,0.00025333,7]
[367024094,1750620652093,-526.938474,0.00025333,7]
[367024095,1750620652102,-1000.0,0.00025336,2]
[367024096,1750620652113,-669.0,0.00025348,2]
[367024097,1750620652122,-1056.0,0.00025348,2]
[367024098,1750620652133,-189.382966,0.00025368,7]
[367024099,1750620652144,-189.382966,0.00025368,7]
[367024100,1750620652155,-784.217425,0.00025368,7]
[367024101,1750620652167,-784.217425,0.00025368,7]
[367024102,1750620652176,-313.8,0.0002537,7]
[367024103,1750620652186,-669.0,0.00025376,2]
[367024104,1750620652195,-1056.0,0.00025376,2]
[367024105,1750620652205,-500.0,0.00025383,4]
[367024106,1750620652215,-884.514294,0.00025384,2]
[367024107,1750620652224,-1000.0,0.00025394,2]
[367024108,1750620652235,-669.0,0.00025403,2]
[367024109,1750620652244,-1056.0,0.00025403,2]
[367024110,1750620652254,-7491.70644255,0.00025418,2]
[367024111,1750620652264,-1000.0,0.00025421,2]
[367024112,1750620652274,-504.53416508,0.00025421,2]
[367024113,1750620652283,-1000.0,0.00025421,2]
[367024114,1750620652293,-669.0,0.0002543,2]
[367024115,1750620652302,-1056.0,0.0002543,2]
[367024116,1750620652312,-5888.0,0.00025445,2]
[367024117,1750620652323,-4185.0,0.00025447,2]
[367024118,1750620652331,-966.45,0.00025454,2]
[367024119,1750620652342,-500.0,0.00025457,2]
[367024120,1750620652352,-669.0,0.00025458,2]
[367024121,1750620652362,-1056.0,0.00025458,2]
[367024122,1750620652371,-437.24886619,0.00025464,2]
[367024123,1750620652382,-150.0,0.00025473,2]
[367024124,1750620652392,-500.0,0.00025483,3]
[367024125,1750620652401,-677.37923397,0.00025485,2]
[367024126,1750620652411,-1071.30217784,0.00025485,2]
[367024127,1750620652421,-1000.0,0.000255,2]
[367024128,1750620652430,-500.0,0.00025503,2]
[367024129,1750620652440,-349.15868476,0.0002556,2]
[367024130,1750620652450,-344.94862943,0.00025568,2]
[367024131,1750620652461,-1500.0,0.00025568,2]
[367024132,1750620652470,-1326.91218325,0.00025568,2]
[367024133,1750620652479,-500.0,0.00025583,5]
[367024134,1750620652489,-365.8215413,0.00025589,2]
[367024135,1750620652498,-365.8215413,0.00025589,2]
[367024136,1750620652507,-365.8215413,0.00025589,2]
[367024137,1750620652517,-365.8215413,0.00025589,2]
[367024138,1750620652526,-365.8215413,0.00025589,2]
[367024139,1750620652535,-365.8215413,0.00025589,2]
[367024140,1750620652545,-365.8215413,0.00025589,2]
[367024141,1750620652554,-365.8215413,0.00025589,2]
[367024142,1750620652564,-365.8215413,0.00025589,2]
[367024143,1750620652574,-365.8215413,0.00025589,2]
[367024144,1750620652583,-365.8215413,0.00025589,2]
[367024145,1750620652593,-365.8215413,0.00025589,2]
[367024146,1750620652603,-365.8215413,0.00025589,2]
[367024147,1750620652612,-365.8215413,0.00025589,2]
[367024148,1750620652621,-365.8215413,0.00025589,2]
[367024149,1750620652634,-365.8215413,0.00025589,2]
[367024150,1750620652644,-365.8215413,0.00025589,2]
[367024151,1750620652653,-365.8215413,0.00025589,2]
[367024152,1750620652664,-365.8215413,0.00025589,2]
[367024153,1750620652674,-7491.70644255,0.0002559,2]
[367024154,1750620652684,-1008.36654091,0.00025598,2]
[367024155,1750620652693,-151.0,0.000256,7]
[367024156,1750620652703,-151.0,0.000256,7]
[367024157,1750620652712,-297.907986,0.000256,7]
[367024158,1750620652722,-297.907986,0.000256,7]
[367024159,1750620652733,-151.0,0.00025602,7]
[367024160,1750620652743,-227.819992,0.00025602,7]
[367024161,1750620652753,-227.819992,0.00025602,7]
[367024162,1750620652762,-151.0,0.00025602,7]
[367024163,1750620652772,-181.766079,0.00025602,7]
[367024164,1750620652782,-181.766079,0.00025602,7]
[367024165,1750620652791,-437.24886619,0.00025611,2]
[367024166,1750620652800,-500.0,0.00025613,2]
[367024167,1750620652810,-151.0,0.00025616,7]
[367024168,1750620652819,-291.774844,0.00025616,7]
[367024169,1750620652829,-291.774844,0.00025616,7]
[367024170,1750620652838,-508.31430779,0.00025616,2]
[367024171,1750620652848,-2000.0,0.00025616,2]
[367024172,1750620652857,-1500.0,0.00025616,2]
[367024173,1750620652867,-779.12600258,0.00025616,2]
[367024174,1750620652876,-1500.0,0.00025616,2]
[367024175,1750620652885,-1602.87593941,0.00025616,2]
[367024176,1750620652895,-1500.0,0.00025616,2]
[367024177,1750620652905,-2000.0,0.00025616,2]
[367024178,1750620652914,-1146.15275276,0.00025616,2]
[367024179,1750620652925,-2000.0,0.00025616,2]
[367024180,1750620652937,-2000.0,0.00025616,2]
[367024181,1750620652948,-1764.54238297,0.00025616,2]
[367024182,1750620652958,-2400.0,0.00025616,2]
[367024183,1750620652968,-1143.42001557,0.00025616,2]
[367024184,1750620652979,-886.74924885,0.00025616,2]
[367024185,1750620652990,-2000.0,0.00025616,2]
[367024186,1750620653000,-1520.69471136,0.00025616,2]
[367024187,1750620653009,-2000.0,0.00025616,2]
[367024188,1750620653019,-2000.0,0.00025616,2]
[367024189,1750620653029,-313.8,0.00025652,7]
[367024190,1750620653039,-151.0,0.00025668,7]
[367024191,1750620653048,-422.838773,0.00025668,7]
[367024192,1750620653058,-28664.798057,0.00025668,7]
[367024193,1750620653068,-365.8215413,0.00025671,2]
[367024194,1750620653078,-365.8215413,0.00025671,2]
[367024195,1750620653087,-365.8215413,0.00025671,2]
[367024196,1750620653098,-365.8215413,0.00025671,2]
[367024197,1750620653107,-365.8215413,0.00025671,2]
[367024198,1750620653117,-365.8215413,0.00025671,2]
[367024199,1750620653126,-151.0,0.00025677,7]
[367024200,1750620653135,-500.0,0.00025683,7]
[367024201,1750620653145,-500.0,0.000257,3]
[367024202,1750620653155,-5888.0,0.00025706,2]
[367024203,1750620653168,-500.0,0.00025712,30]
[367024204,1750620653178,-3000.0,0.00025712,2]
[367024205,1750620653188,-279.3277191,0.00025712,2]
[367024206,1750620653199,-1585.854578,0.00025713,7]
[367024207,1750620653208,-1585.854578,0.00025713,7]
[367024208,1750620653218,-1597.439116,0.00025713,7]
[367024209,1750620653227,-1597.439116,0.00025713,7]
[367024210,1750620653236,-151.0,0.00025713,7]
[367024211,1750620653246,-151.0,0.00025713,7]
[367024212,1750620653255,-312.48292,0.00025713,7]
[367024213,1750620653265,-312.48292,0.00025713,7]
[367024214,1750620653275,-252.958036,0.00025713,7]
[367024215,1750620653284,-252.958036,0.00025713,7]
[367024216,1750620653294,-151.0,0.00025713,7]
[367024217,1750620653304,-1763.07536,0.00025713,7]
[367024218,1750620653314,-1763.07536,0.00025713,7]
[367024219,1750620653324,-153.0,0.00025726,2]
[367024220,1750620653335,-177.3077519,0.00025726,2]
[367024221,1750620653346,-177.3077519,0.00025726,2]
[367024222,1750620653356,-153.0,0.00025726,2]
[367024223,1750620653366,-177.3077519,0.00025726,2]
[367024224,1750620653376,-153.0,0.00025726,2]
[367024225,1750620653386,-177.3077519,0.00025726,2]
[367024226,1750620653396,-177.3077519,0.00025726,2]
[367024227,1750620653405,-177.3077519,0.00025726,2]
[367024228,1750620653415,-153.0,0.00025726,2]
[367024229,1750620653424,-177.3077519,0.00025726,2]
[367024230,1750620653434,-159.1115641,0.00025726,2]
[367024231,1750620653443,-177.3077519,0.00025726,2]
[367024232,1750620653453,-153.0,0.00025726,2]
[367024233,1750620653462,-177.2671815,0.00025726,2]
[367024234,1750620653472,-159.1115641,0.00025726,2]
[367024235,1750620653481,-153.0,0.00025726,2]
[367024236,1750620653492,-159.1115641,0.00025726,2]
[367024237,1750620653502,-159.1115641,0.00025726,2]
[367024238,1750620653512,-153.0,0.00025726,2]
[367024239,1750620653521,-159.0806219,0.00025726,2]
[367024240,1750620653531,-153.0,0.00025726,2]
[367024241,1750620653540,-574.1028085,0.00025726,2]
[367024242,1750620653550,-153.0,0.00025726,2]
[367024243,1750620653559,-1149.2995514,0.00025726,2]
[367024244,1750620653569,-223.51401078,0.0002574,7]
[367024245,1750620653579,-1407.52,0.00025753,3]
[367024246,1750620653590,-437.24886628,0.00025758,2]
[367024247,1750620653600,-1031.71510854,0.00025763,2]
[367024248,1750620653987,-6459.99133401,0.00025763,2]
[367024249,1750620653997,-1500.0,0.00025772,2]
[367024250,1750620654007,-589.09272406,0.00025782,2]
[367024251,1750620654017,-500.0,0.00025783,2]
[367024252,1750620654027,-500.0,0.000258,3]